[Event "FIDE Women World Blitz 2021"]
[Site "Warsaw"]
[Date "2021.12.29"]
[Round "5.25"]
[White "Bivol, Alina"]
[Black "Cyfka, Karina"]
[Result "1-0"]
[ECO "C89"]
[WhiteElo "2377"]
[BlackElo "2416"]
[Annotator "NA"]
[PlyCount "139"]
[EventDate "2021.12.29"]
[EventType "swiss"]
[EventCountry "POL"]
[Tiebreak "Cut1 Buchholz"]
[SourceTitle "playchess.com"]
[Source "ChessBase"]
[SourceQuality "1"]
[TimeControl "180+2"]

1. e4 {[%emt 0:00:01]} e5 {[%emt 0:00:01]} 2. Nf3 {[%emt 0:00:04]} Nc6 {
[%emt 0:00:01]} 3. Bb5 {[%emt 0:00:01]} a6 {[%emt 0:00:01]} 4. Ba4 {[%emt 0:00:
01]} Nf6 {[%emt 0:00:01]} 5. O-O {[%emt 0:00:01]} Be7 {[%emt 0:00:00]} 6. d3 {
[%emt 0:00:08]} b5 {[%emt 0:00:01]} 7. Bb3 {[%emt 0:00:01]} O-O {[%emt 0:00:02]
} 8. c3 {[%emt 0:00:05]} d5 {[%emt 0:00:01]} 9. exd5 {[%emt 0:00:08]} Nxd5 {
[%emt 0:00:01]} 10. Re1 {[%emt 0:00:01]} Bg4 {[%emt 0:00:01]} 11. h3 {[%emt 0:
00:07]} Bh5 {[%emt 0:00:00]} 12. g4 {[%emt 0:00:14]} Bg6 {[%emt 0:00:01]} 13.
Nxe5 {[%emt 0:00:02]} Nxe5 {[%emt 0:00:03]} 14. Rxe5 {[%emt 0:00:01]} c6 {
[%emt 0:00:07]} 15. Bxd5 {[%emt 0:00:18]} cxd5 {[%emt 0:00:02]} 16. Qf3 {
[%emt 0:00:01]} Bd6 {[%emt 0:00:39]} 17. Rxd5 {[%emt 0:00:03]} Qc7 {[%emt 0:00:
11]} 18. Be3 {[%emt 0:00:08]} Rad8 {[%emt 0:00:22]} 19. Nd2 {[%emt 0:00:21]}
Bh2+ {[%emt 0:00:17]} 20. Kh1 {[%emt 0:00:06]} Bxd3 {[%emt 0:00:27]} 21. Rxd8 {
[%emt 0:00:12]} Rxd8 {[%emt 0:00:01]} 22. Bd4 {[%emt 0:00:03]} Bg6 {[%emt 0:00:
14]} 23. Re1 {[%emt 0:00:04]} Bd6 {[%emt 0:00:12]} 24. Ne4 {[%emt 0:00:07]} Bf8
{[%emt 0:00:13]} 25. Ng3 {[%emt 0:00:08]} f6 {[%emt 0:00:07]} 26. Nf5 {[%emt 0:
00:26]} Bf7 {[%emt 0:00:02]} 27. Ne3 {[%emt 0:00:03]} Re8 {[%emt 0:00:20]} 28.
Rd1 {[%emt 0:00:08]} a5 {[%emt 0:00:10]} 29. b3 {[%emt 0:00:09]} Bg6 {[%emt 0:
00:05]} 30. Nf5 {[%emt 0:00:15]} Bf7 {[%emt 0:00:02]} 31. Ne3 {[%emt 0:00:00]}
a4 {[%emt 0:00:02]} 32. bxa4 {[%emt 0:00:09]} bxa4 {[%emt 0:00:01]} 33. Rb1 {
[%emt 0:00:01]} Bxa2 {[%emt 0:00:04]} 34. Rb7 {[%emt 0:00:01]} Qd8 {[%emt 0:00:
08]} 35. Ra7 {[%emt 0:00:04]} a3 {[%emt 0:00:01]} 36. Kg1 {[%emt 0:00:05]} Be6
{[%emt 0:00:01]} 37. Nf5 {[%emt 0:00:06]} Bxf5 {[%emt 0:00:04]} 38. Qxf5 {
[%emt 0:00:07]} Qb8 {[%emt 0:00:05]} 39. Qd5+ {[%emt 0:00:05]} Kh8 {[%emt 0:00:
02]} 40. Kg2 {[%emt 0:00:01]} Qc8 {[%emt 0:00:03]} 41. g5 {[%emt 0:00:05]} fxg5
{[%emt 0:00:05]} 42. Qxg5 {[%emt 0:00:03]} Qc6+ {[%emt 0:00:01]} 43. f3 {
[%emt 0:00:04]} Qg6 {[%emt 0:00:01]} 44. Qxg6 {[%emt 0:00:01]} hxg6 {[%emt 0:
00:01]} 45. c4 {[%emt 0:00:02]} Rc8 {[%emt 0:00:01]} 46. c5 {[%emt 0:00:01]}
Kg8 {[%emt 0:00:04]} 47. Rxa3 {[%emt 0:00:02]} Kf7 {[%emt 0:00:03]} 48. Rc3 {
[%emt 0:00:05]} Ke6 {[%emt 0:00:00]} 49. Kg3 {[%emt 0:00:03]} Kd5 50. Bg1 {
[%emt 0:00:02]} Kc6 {[%emt 0:00:05]} 51. Kg4 {[%emt 0:00:01]} Be7 {[%emt 0:00:
01]} 52. Re3 {[%emt 0:00:03]} Bf6 {[%emt 0:00:01]} 53. f4 {[%emt 0:00:03]} Rh8
{[%emt 0:00:01]} 54. Kg3 {[%emt 0:00:02]} Rd8 {[%emt 0:00:02]} 55. Re6+ {
[%emt 0:00:01]} Kd5 {[%emt 0:00:02]} 56. Ra6 {[%emt 0:00:01]} Rc8 {[%emt 0:00:
03]} 57. Kg4 {[%emt 0:00:03]} Rh8 {[%emt 0:00:02]} 58. Bf2 {[%emt 0:00:00]} Rc8
{[%emt 0:00:02]} 59. Bh4 {[%emt 0:00:03]} Bxh4 60. Kxh4 {[%emt 0:00:01]} Rh8+ {
[%emt 0:00:06]} 61. Kg4 {[%emt 0:00:01]} Rh6 {[%emt 0:00:04]} 62. c6 Kd6 63.
Ra7 {[%emt 0:00:03]} Kxc6 {[%emt 0:00:04]} 64. Rxg7 {[%emt 0:00:02]} Kd5 {
[%emt 0:00:01]} 65. Re7 {[%emt 0:00:05]} Kd6 {[%emt 0:00:01]} 66. Re3 {[%emt 0:
00:02]} Kd5 {[%emt 0:00:01]} 67. Kg5 {[%emt 0:00:01]} Rh8 {[%emt 0:00:03]} 68.
Kxg6 {[%emt 0:00:01]} Rg8+ {[%emt 0:00:00]} 69. Kf7 {[%emt 0:00:03]} Rg2 {
[%emt 0:00:02]} 70. f5 {[%emt 0:00:00]} 1-0

[Event "FIDE Women World Blitz 2021"]
[Site "Warsaw"]
[Date "2021.12.29"]
[Round "5.26"]
[White "Zawadzka, Jolanta"]
[Black "Muetsch, Annmarie"]
[Result "0-1"]
[ECO "B07"]
[WhiteElo "2429"]
[BlackElo "2279"]
[Annotator "NA"]
[PlyCount "124"]
[EventDate "2021.12.29"]
[EventType "swiss"]
[EventCountry "POL"]
[Tiebreak "Cut1 Buchholz"]
[SourceTitle "playchess.com"]
[Source "ChessBase"]
[SourceQuality "1"]
[TimeControl "180+2"]

1. e4 {[%emt 0:00:01]} d6 {[%emt 0:00:01]} 2. d4 {[%emt 0:00:02]} Nf6 {[%emt 0:
00:01]} 3. Nc3 {[%emt 0:00:01]} e5 {[%emt 0:00:01]} 4. dxe5 {[%emt 0:00:00]}
dxe5 {[%emt 0:00:01]} 5. Qxd8+ {[%emt 0:00:02]} Kxd8 {[%emt 0:00:01]} 6. Bc4 {
[%emt 0:00:01]} Ke8 {[%emt 0:00:03]} 7. Nf3 {[%emt 0:00:01]} Bd6 {[%emt 0:00:
03]} 8. Bg5 {[%emt 0:00:02]} Nbd7 {[%emt 0:00:03]} 9. O-O-O {[%emt 0:00:02]} h6
{[%emt 0:00:09]} 10. Bh4 {[%emt 0:00:08]} a6 {[%emt 0:00:27]} 11. a4 {[%emt 0:
00:01]} g5 {[%emt 0:00:16]} 12. Bg3 {[%emt 0:00:01]} Ke7 {[%emt 0:00:00]} 13.
h3 {[%emt 0:00:35]} Nh5 {[%emt 0:00:39]} 14. Bh2 {[%emt 0:00:05]} Nf4 {[%emt 0:
00:04]} 15. Bxf4 {[%emt 0:00:42]} gxf4 {[%emt 0:00:12]} 16. Nd5+ {[%emt 0:00:
01]} Kf8 {[%emt 0:00:09]} 17. Nh4 {[%emt 0:00:12]} Nc5 {[%emt 0:00:04]} 18. Nb6
{[%emt 0:00:23]} Rb8 {[%emt 0:00:01]} 19. Nxc8 {[%emt 0:00:16]} Rxc8 {[%emt 0:
00:01]} 20. Nf5 {[%emt 0:00:06]} Nxe4 {[%emt 0:00:03]} 21. Rhe1 {[%emt 0:00:10]
} Ng5 {[%emt 0:00:29]} 22. Bd5 {[%emt 0:00:06]} b5 {[%emt 0:00:08]} 23. Bb7 {
[%emt 0:00:12]} Rb8 {[%emt 0:00:01]} 24. Bxa6 {[%emt 0:00:01]} bxa4 {[%emt 0:
00:01]} 25. Nxd6 {[%emt 0:00:02]} cxd6 {[%emt 0:00:02]} 26. Rxd6 {[%emt 0:00:
01]} Ke7 {[%emt 0:00:07]} 27. Rc6 {[%emt 0:00:05]} f6 {[%emt 0:00:05]} 28. Bc4
{[%emt 0:00:07]} Rhc8 {[%emt 0:00:04]} 29. Rxc8 {[%emt 0:00:03]} Rxc8 {[%emt 0:
00:01]} 30. Bb5 {[%emt 0:00:02]} Ra8 {[%emt 0:00:04]} 31. Rd1 {[%emt 0:00:02]}
Ra7 {[%emt 0:00:03]} 32. Rd5 {[%emt 0:00:08]} Ne4 {[%emt 0:00:05]} 33. f3 {
[%emt 0:00:09]} Nd6 {[%emt 0:00:00]} 34. Bd3 {[%emt 0:00:02]} a3 {[%emt 0:00:
04]} 35. bxa3 {[%emt 0:00:01]} Rxa3 {[%emt 0:00:01]} 36. Kd2 {[%emt 0:00:02]}
Ra1 {[%emt 0:00:02]} 37. Ke2 {[%emt 0:00:05]} Rg1 {[%emt 0:00:04]} 38. Kf2 {
[%emt 0:00:01]} Rc1 {[%emt 0:00:03]} 39. Rc5 {[%emt 0:00:02]} Ke6 {[%emt 0:00:
03]} 40. Rc6 {[%emt 0:00:02]} Kd5 {[%emt 0:00:04]} 41. Rc7 {[%emt 0:00:02]} f5
{[%emt 0:00:02]} 42. c4+ {[%emt 0:00:13]} Kd4 {[%emt 0:00:17]} 43. Be2 {
[%emt 0:00:01]} e4 {[%emt 0:00:03]} 44. fxe4 {[%emt 0:00:05]} fxe4 {[%emt 0:00:
01]} 45. g3 {[%emt 0:00:02]} fxg3+ {[%emt 0:00:02]} 46. Kxg3 {[%emt 0:00:01]}
Nf5+ {[%emt 0:00:01]} 47. Kf4 {[%emt 0:00:01]} Nh4 {[%emt 0:00:07]} 48. Rd7+ {
[%emt 0:00:01]} Kc5 {[%emt 0:00:01]} 49. Rd5+ {[%emt 0:00:01]} Kc6 {[%emt 0:00:
01]} 50. Kxe4 {[%emt 0:00:01]} Re1 {[%emt 0:00:01]} 51. Kd3 {[%emt 0:00:01]}
Ng2 {[%emt 0:00:04]} 52. Rf5 {[%emt 0:00:03]} Kd6 {[%emt 0:00:04]} 53. Kd2 {
[%emt 0:00:02]} Ra1 {[%emt 0:00:01]} 54. Rf6+ {[%emt 0:00:01]} Ke5 {[%emt 0:00:
01]} 55. Rxh6 {[%emt 0:00:01]} Ra2+ {[%emt 0:00:02]} 56. Kd1 {[%emt 0:00:01]}
Ne3+ {[%emt 0:00:02]} 57. Ke1 {[%emt 0:00:01]} Kd4 {[%emt 0:00:05]} 58. Rh4+ {
[%emt 0:00:03]} Ke5 {[%emt 0:00:01]} 59. c5 {[%emt 0:00:02]} Ng2+ {[%emt 0:00:
00]} 60. Kf2 {[%emt 0:00:01]} Nxh4 {[%emt 0:00:01]} 61. Kg3 {[%emt 0:00:01]}
Nf5+ {[%emt 0:00:01]} 62. Kf2 {[%emt 0:00:01]} Nd4 {[%emt 0:00:02]} 0-1

[Event "FIDE Women World Blitz 2021"]
[Site "Warsaw"]
[Date "2021.12.29"]
[Round "5.27"]
[White "Gaboyan, Susanna"]
[Black "Padmini, Rout"]
[Result "1-0"]
[ECO "A08"]
[WhiteElo "2253"]
[BlackElo "2353"]
[Annotator "NA"]
[PlyCount "133"]
[EventDate "2021.12.29"]
[EventType "swiss"]
[EventCountry "POL"]
[Tiebreak "Cut1 Buchholz"]
[SourceTitle "playchess.com"]
[Source "ChessBase"]
[SourceQuality "1"]
[TimeControl "180+2"]

1. Nf3 {[%emt 0:00:03]} Nf6 {[%emt 0:00:06]} 2. g3 {[%emt 0:00:02]} g6 {
[%emt 0:00:11]} 3. Bg2 {[%emt 0:00:02]} Bg7 {[%emt 0:00:01]} 4. O-O {[%emt 0:
00:01]} O-O {[%emt 0:00:02]} 5. d3 {[%emt 0:00:05]} d5 {[%emt 0:00:03]} 6. Nbd2
{[%emt 0:00:02]} c5 {[%emt 0:00:02]} 7. e4 {[%emt 0:00:01]} Nc6 {[%emt 0:00:01]
} 8. h3 {[%emt 0:00:51]} e5 {[%emt 0:00:13]} 9. exd5 {[%emt 0:00:02]} Nxd5 {
[%emt 0:00:02]} 10. Re1 {[%emt 0:00:03]} Re8 {[%emt 0:00:06]} 11. Nc4 {[%emt 0:
00:03]} b6 {[%emt 0:00:08]} 12. Ng5 {[%emt 0:00:29]} f6 {[%emt 0:01:11]} 13.
Ne4 {[%emt 0:00:02]} Re6 {[%emt 0:00:09]} 14. Qf3 {[%emt 0:00:28]} Ndb4 {
[%emt 0:00:23]} 15. Ne3 {[%emt 0:00:17]} Rb8 {[%emt 0:00:01]} 16. a3 {[%emt 0:
00:07]} Nd4 {[%emt 0:00:07]} 17. Qd1 {[%emt 0:00:06]} Na6 {[%emt 0:00:06]} 18.
c3 {[%emt 0:00:17]} Nc6 {[%emt 0:00:02]} 19. Nd5 {[%emt 0:00:02]} Kh8 {[%emt 0:
00:08]} 20. c4 {[%emt 0:00:04]} Nd4 {[%emt 0:00:04]} 21. Be3 {[%emt 0:00:02]}
Nc7 {[%emt 0:00:02]} 22. Nec3 {[%emt 0:00:04]} Ne8 {[%emt 0:00:08]} 23. Bxd4 {
[%emt 0:00:06]} cxd4 {[%emt 0:00:02]} 24. Ne4 {[%emt 0:00:16]} Nc7 {[%emt 0:00:
01]} 25. Nd2 {[%emt 0:00:03]} Bb7 {[%emt 0:00:02]} 26. Nxc7 Qxc7 {[%emt 0:00:
01]} 27. Ne4 {[%emt 0:00:11]} h6 {[%emt 0:00:07]} 28. Rc1 {[%emt 0:00:04]} f5 {
[%emt 0:00:02]} 29. Nd2 {[%emt 0:00:03]} Rbe8 {[%emt 0:00:02]} 30. b4 {[%emt 0:
00:02]} Bxg2 31. Kxg2 {[%emt 0:00:01]} e4 {[%emt 0:00:06]} 32. c5 {[%emt 0:00:
03]} e3 {[%emt 0:00:07]} 33. Nf3 {[%emt 0:00:03]} f4 {[%emt 0:00:05]} 34. g4 {
[%emt 0:00:01]} g5 {[%emt 0:00:02]} 35. Qc2 {[%emt 0:00:02]} Qc6 {[%emt 0:00:
04]} 36. cxb6 {[%emt 0:00:01]} Qxb6 {[%emt 0:00:03]} 37. Qc5 {[%emt 0:00:02]}
Qa6 {[%emt 0:00:02]} 38. Nxd4 {[%emt 0:00:02]} Re5 {[%emt 0:00:07]} 39. Qc4 {
[%emt 0:00:01]} Qxa3 {[%emt 0:00:03]} 40. Nf3 {[%emt 0:00:03]} R5e7 {[%emt 0:
00:03]} 41. Re2 {[%emt 0:00:02]} Qa4 {[%emt 0:00:01]} 42. b5 {[%emt 0:00:03]}
Qa5 {[%emt 0:00:02]} 43. Nd4 {[%emt 0:00:02]} Qb6 {[%emt 0:00:02]} 44. Nf5 {
[%emt 0:00:01]} Rd7 {[%emt 0:00:05]} 45. Qc6 {[%emt 0:00:02]} Qxc6+ {[%emt 0:
00:02]} 46. bxc6 {[%emt 0:00:01]} Rxd3 {[%emt 0:00:01]} 47. c7 {[%emt 0:00:01]}
Rc8 {[%emt 0:00:02]} 48. Ne7 {[%emt 0:00:01]} Rxc7 {[%emt 0:00:04]} 49. Rxc7 {
[%emt 0:00:01]} exf2 {[%emt 0:00:01]} 50. Nf5 {[%emt 0:00:03]} f3+ {[%emt 0:00:
02]} 51. Kxf2 {[%emt 0:00:04]} fxe2 {[%emt 0:00:03]} 52. Kxe2 {[%emt 0:00:05]}
Rxh3 {[%emt 0:00:01]} 53. Rxg7 {[%emt 0:00:02]} Rh2+ {[%emt 0:00:02]} 54. Kf3 {
[%emt 0:00:01]} h5 {[%emt 0:00:01]} 55. Rxg5 {[%emt 0:00:02]} hxg4+ {[%emt 0:
00:02]} 56. Rxg4 {[%emt 0:00:01]} Ra2 {[%emt 0:00:01]} 57. Ke4 {[%emt 0:00:03]}
Ra4+ {[%emt 0:00:01]} 58. Nd4 {[%emt 0:00:01]} Kh7 {[%emt 0:00:01]} 59. Kf5 {
[%emt 0:00:01]} Kh6 {[%emt 0:00:02]} 60. Kf6 {[%emt 0:00:02]} Ra6+ {[%emt 0:00:
01]} 61. Ne6 {[%emt 0:00:01]} Kh5 {[%emt 0:00:02]} 62. Rd4 {[%emt 0:00:03]} Rc6
{[%emt 0:00:01]} 63. Kf5 {[%emt 0:00:03]} a5 {[%emt 0:00:03]} 64. Rd8 {[%emt 0:
00:01]} Kh4 {[%emt 0:00:02]} 65. Kf4 {[%emt 0:00:03]} Rc4+ {[%emt 0:00:01]} 66.
Nd4 {[%emt 0:00:01]} a4 {[%emt 0:00:01]} 67. Rh8# {[%emt 0:00:01]} 1-0

[Event "FIDE Women World Blitz 2021"]
[Site "Warsaw"]
[Date "2021.12.29"]
[Round "5.28"]
[White "Loskutova, Viktoriya"]
[Black "Majdan, Joanna"]
[Result "0-1"]
[ECO "B43"]
[WhiteElo "2195"]
[BlackElo "2325"]
[Annotator "NA"]
[PlyCount "130"]
[EventDate "2021.12.29"]
[EventType "swiss"]
[EventCountry "POL"]
[Tiebreak "Cut1 Buchholz"]
[SourceTitle "playchess.com"]
[Source "ChessBase"]
[SourceQuality "1"]
[TimeControl "180+2"]

1. e4 {[%emt 0:00:01]} c5 {[%emt 0:00:01]} 2. Nf3 {[%emt 0:00:01]} e6 {[%emt 0:
00:01]} 3. d4 {[%emt 0:00:01]} cxd4 {[%emt 0:00:01]} 4. Nxd4 {[%emt 0:00:01]}
Nf6 {[%emt 0:00:01]} 5. Nc3 {[%emt 0:00:01]} a6 {[%emt 0:00:01]} 6. Be3 {
[%emt 0:00:06]} Qc7 {[%emt 0:00:03]} 7. g4 {[%emt 0:00:07]} Bb4 {[%emt 0:00:06]
} 8. Nde2 {[%emt 0:00:41]} Nxe4 {[%emt 0:00:20]} 9. Qd4 {[%emt 0:00:09]} Nxc3 {
[%emt 0:00:03]} 10. Nxc3 {[%emt 0:00:07]} Bf8 {[%emt 0:00:05]} 11. O-O-O {
[%emt 0:00:08]} Nc6 {[%emt 0:00:07]} 12. Qd2 {[%emt 0:00:40]} d5 {[%emt 0:00:
06]} 13. Bg2 {[%emt 0:00:12]} Bb4 {[%emt 0:00:16]} 14. a3 {[%emt 0:00:06]} Be7
{[%emt 0:00:13]} 15. f4 {[%emt 0:00:27]} Na5 {[%emt 0:00:10]} 16. Qd3 {[%emt 0:
00:05]} Nc4 {[%emt 0:00:06]} 17. Kb1 {[%emt 0:00:20]} Nxe3 {[%emt 0:00:08]} 18.
Qxe3 {[%emt 0:00:00]} O-O {[%emt 0:00:08]} 19. g5 {[%emt 0:00:05]} Bc5 {
[%emt 0:00:10]} 20. Qf3 {[%emt 0:00:05]} Bd7 {[%emt 0:00:08]} 21. h4 {[%emt 0:
00:04]} Rac8 {[%emt 0:00:04]} 22. Na2 {[%emt 0:00:12]} Bd6 {[%emt 0:00:03]} 23.
Qe2 {[%emt 0:00:04]} Bb5 {[%emt 0:00:05]} 24. Qf2 {[%emt 0:00:01]} Bxf4 {
[%emt 0:00:04]} 25. Bf3 {[%emt 0:00:03]} Bc4 {[%emt 0:00:10]} 26. Nb4 {[%emt 0:
00:02]} a5 {[%emt 0:00:04]} 27. Nd3 {[%emt 0:00:01]} Bxd3 {[%emt 0:00:02]} 28.
Rxd3 {[%emt 0:00:01]} Qc5 {[%emt 0:00:08]} 29. Qg2 {[%emt 0:00:02]} b5 {
[%emt 0:00:15]} 30. h5 {[%emt 0:00:02]} b4 {[%emt 0:00:01]} 31. a4 {[%emt 0:00:
00]} Qc6 {[%emt 0:00:11]} 32. Qg4 {[%emt 0:00:03]} Be5 {[%emt 0:00:05]} 33. Bd1
{[%emt 0:00:01]} Qxa4 {[%emt 0:00:07]} 34. Re1 {[%emt 0:00:01]} Bd6 {[%emt 0:
00:07]} 35. g6 {[%emt 0:00:03]} f5 {[%emt 0:00:05]} 36. Qg5 {[%emt 0:00:02]} h6
{[%emt 0:00:02]} 37. Qe3 {[%emt 0:00:02]} Rce8 {[%emt 0:00:08]} 38. Qb6 {
[%emt 0:00:01]} Qd7 {[%emt 0:00:02]} 39. Rde3 {[%emt 0:00:04]} e5 {[%emt 0:00:
02]} 40. Rd3 {[%emt 0:00:01]} d4 {[%emt 0:00:02]} 41. Qxa5 {[%emt 0:00:02]} Qc6
{[%emt 0:00:07]} 42. Qa2+ {[%emt 0:00:03]} Kh8 {[%emt 0:00:01]} 43. Qb3 {
[%emt 0:00:02]} Ra8 {[%emt 0:00:03]} 44. Kc1 {[%emt 0:00:01]} Ra1+ {[%emt 0:00:
02]} 45. Kd2 {[%emt 0:00:01]} e4 {[%emt 0:00:02]} 46. Rxd4 {[%emt 0:00:01]}
Bf4+ {[%emt 0:00:07]} 47. Ke2 {[%emt 0:00:01]} Qb5+ {[%emt 0:00:02]} 48. Qc4 {
[%emt 0:00:01]} Qxc4+ {[%emt 0:00:01]} 49. Rxc4 {[%emt 0:00:01]} Bg3 {[%emt 0:
00:03]} 50. Rg1 {[%emt 0:00:02]} Be5 {[%emt 0:00:04]} 51. Rxb4 {[%emt 0:00:01]}
Rd8 {[%emt 0:00:01]} 52. Rb7 {[%emt 0:00:02]} Bf4 {[%emt 0:00:03]} 53. Re1 {
[%emt 0:00:06]} Rd2+ {[%emt 0:00:03]} 54. Kf1 {[%emt 0:00:02]} Raxd1 {[%emt 0:
00:01]} 55. Rxd1 {[%emt 0:00:01]} Rxd1+ {[%emt 0:00:01]} 56. Ke2 {[%emt 0:00:
01]} Rd2+ {[%emt 0:00:01]} 57. Ke1 {[%emt 0:00:01]} Rxc2 {[%emt 0:00:03]} 58.
Rf7 {[%emt 0:00:01]} Rc8 {[%emt 0:00:03]} 59. Rxf5 {[%emt 0:00:02]} Bg5 {
[%emt 0:00:01]} 60. b4 {[%emt 0:00:02]} e3 {[%emt 0:00:01]} 61. Re5 {[%emt 0:
00:04]} Kg8 {[%emt 0:00:01]} 62. b5 {[%emt 0:00:01]} Kf8 {[%emt 0:00:02]} 63.
Ke2 {[%emt 0:00:01]} Rc2+ {[%emt 0:00:03]} 64. Kf3 {[%emt 0:00:02]} Rf2+ {
[%emt 0:00:02]} 65. Kg3 {[%emt 0:00:02]} Bf4+ {[%emt 0:00:02]} 0-1

[Event "FIDE Women World Blitz 2021"]
[Site "Warsaw"]
[Date "2021.12.29"]
[Round "5.29"]
[White "Kulon, Klaudia"]
[Black "Doluhanova, Evgeniya"]
[Result "1-0"]
[ECO "A22"]
[WhiteElo "2328"]
[BlackElo "2237"]
[Annotator "NA"]
[PlyCount "49"]
[EventDate "2021.12.29"]
[EventType "swiss"]
[EventCountry "POL"]
[Tiebreak "Cut1 Buchholz"]
[SourceTitle "playchess.com"]
[Source "ChessBase"]
[SourceQuality "1"]
[TimeControl "180+2"]

1. c4 {[%emt 0:00:01]} Nf6 {[%emt 0:00:03]} 2. g3 {[%emt 0:00:01]} e5 {[%emt 0:
00:05]} 3. Bg2 {[%emt 0:00:00]} d5 {[%emt 0:00:04]} 4. cxd5 {[%emt 0:00:02]}
Nxd5 {[%emt 0:00:01]} 5. Nc3 {[%emt 0:00:00]} Nxc3 {[%emt 0:00:14]} 6. bxc3 {
[%emt 0:00:02]} Bd6 {[%emt 0:00:01]} 7. e3 {[%emt 0:00:08]} O-O {[%emt 0:00:04]
} 8. d4 {[%emt 0:00:03]} exd4 {[%emt 0:00:06]} 9. exd4 {[%emt 0:00:13]} c5 {
[%emt 0:00:06]} 10. d5 {[%emt 0:00:06]} Qf6 {[%emt 0:00:15]} 11. Ne2 {[%emt 0:
00:02]} b6 {[%emt 0:00:13]} 12. O-O {[%emt 0:00:16]} Ba6 {[%emt 0:00:01]} 13.
Re1 {[%emt 0:00:03]} Nd7 {[%emt 0:00:24]} 14. Qa4 {[%emt 0:00:18]} Bxe2 {
[%emt 0:00:09]} 15. Rxe2 {[%emt 0:00:01]} Qxc3 {[%emt 0:00:26]} 16. Bb2 {
[%emt 0:00:02]} Qd3 {[%emt 0:00:09]} 17. Rae1 {[%emt 0:00:28]} Rad8 {[%emt 0:
00:27]} 18. Qxa7 {[%emt 0:00:07]} Qf5 {[%emt 0:00:12]} 19. Qa4 {[%emt 0:00:04]}
Nf6 {[%emt 0:00:06]} 20. Qc6 {[%emt 0:00:01]} h6 {[%emt 0:00:13]} 21. a4 {
[%emt 0:00:07]} Bb8 {[%emt 0:00:09]} 22. Qxb6 {[%emt 0:00:24]} Nxd5 {[%emt 0:
00:03]} 23. Qxc5 {[%emt 0:00:01]} Qd7 {[%emt 0:00:10]} 24. Rd2 {[%emt 0:00:06]}
Qc7 {[%emt 0:00:03]} 25. Rxd5 {[%emt 0:00:05]} 1-0

[Event "FIDE Women World Blitz 2021"]
[Site "Warsaw"]
[Date "2021.12.29"]
[Round "5.30"]
[White "Zairbek kyzy, Begimai"]
[Black "Mamedjarova, Turkan"]
[Result "0-1"]
[ECO "C58"]
[WhiteElo "1701"]
[BlackElo "2264"]
[Annotator "NA"]
[PlyCount "72"]
[EventDate "2021.12.29"]
[EventType "swiss"]
[EventCountry "POL"]
[Tiebreak "Cut1 Buchholz"]
[SourceTitle "playchess.com"]
[Source "ChessBase"]
[SourceQuality "1"]
[TimeControl "180+2"]

1. e4 {[%emt 0:00:01]} e5 {[%emt 0:00:01]} 2. Nf3 {[%emt 0:00:01]} Nc6 {
[%emt 0:00:01]} 3. Bc4 {[%emt 0:00:01]} Nf6 {[%emt 0:00:07]} 4. Ng5 {[%emt 0:
00:02]} d5 {[%emt 0:00:01]} 5. exd5 {[%emt 0:00:00]} Na5 {[%emt 0:00:02]} 6.
Bb5+ {[%emt 0:00:01]} c6 {[%emt 0:00:02]} 7. dxc6 {[%emt 0:00:01]} bxc6 {
[%emt 0:00:02]} 8. Bd3 {[%emt 0:00:03]} Bc5 {[%emt 0:00:07]} 9. O-O {[%emt 0:
00:06]} O-O {[%emt 0:00:10]} 10. Nc3 {[%emt 0:00:17]} Bg4 {[%emt 0:00:16]} 11.
Qe1 {[%emt 0:00:29]} Qe7 {[%emt 0:00:33]} 12. a3 {[%emt 0:00:09]} Nb7 {[%emt 0:
00:08]} 13. b4 {[%emt 0:00:01]} Bd6 {[%emt 0:00:13]} 14. f3 {[%emt 0:00:34]}
Bh5 {[%emt 0:00:12]} 15. Qh4 {[%emt 0:00:01]} h6 {[%emt 0:00:16]} 16. Nh3 {
[%emt 0:01:24]} Bg6 {[%emt 0:00:21]} 17. Bxg6 {[%emt 0:00:01]} fxg6 {[%emt 0:
00:00]} 18. Qc4+ {[%emt 0:00:02]} Kh8 {[%emt 0:00:06]} 19. Qxc6 {[%emt 0:00:03]
} a5 {[%emt 0:00:11]} 20. b5 {[%emt 0:00:10]} Rfc8 {[%emt 0:00:07]} 21. Nd5 {
[%emt 0:00:05]} Qf7 {[%emt 0:00:12]} 22. Nxf6 {[%emt 0:00:04]} Rxc6 {[%emt 0:
00:01]} 23. bxc6 {[%emt 0:00:00]} Nc5 {[%emt 0:00:04]} 24. Ng4 {[%emt 0:00:01]}
Qc7 {[%emt 0:00:03]} 25. Nhf2 {[%emt 0:00:03]} Qxc6 {[%emt 0:00:01]} 26. Ne4 {
[%emt 0:00:00]} Nxe4 {[%emt 0:00:02]} 27. fxe4 {[%emt 0:00:01]} Qxc2 {[%emt 0:
00:02]} 28. Re1 {[%emt 0:00:03]} Bc5+ {[%emt 0:00:02]} 29. Kh1 {[%emt 0:00:02]}
Rf8 {[%emt 0:00:01]} 30. Nxe5 {[%emt 0:00:02]} Kh7 {[%emt 0:00:05]} 31. d4 {
[%emt 0:00:04]} Bxd4 {[%emt 0:00:02]} 32. Be3 {[%emt 0:00:03]} Bxa1 {[%emt 0:
00:07]} 33. Rxa1 {[%emt 0:00:00]} Qxe4 {[%emt 0:00:01]} 34. Nd7 {[%emt 0:00:05]
} Rd8 {[%emt 0:00:03]} 35. Bb6 {[%emt 0:00:06]} Rxd7 {[%emt 0:00:01]} 36. Bxa5
{[%emt 0:00:01]} Qe5 {[%emt 0:00:02]} 0-1